[Event "Late-Titled-Tuesday-Blitz-October-10-2023"]
[Site "Chess.com"]
[Date "2023.10.10"]
[Round "4"]
[White "Korchmar_Vasiliy"]
[Black "iturrizaga"]
[Result "0-1"]
[WhiteElo "2769"]
[BlackElo "3002"]
[TimeControl "180+1"]
[EndTime "14:37:28 PDT"]
[Termination "iturrizaga won by resignation"]

1. e4 {[%clk 0:03:00.9]} 1... c5 {[%clk 0:02:59.7]} 2. d4 {[%clk 0:03:01]} 2...
cxd4 {[%clk 0:02:59.9]} 3. Qxd4 {[%clk 0:03:01.9]} 3... Nc6 {[%clk 0:02:59.8]}
4. Qd3 {[%clk 0:03:02.4]} 4... Nf6 {[%clk 0:02:59.9]} 5. Nc3 {[%clk 0:03:02.8]}
5... d6 {[%clk 0:03:00.1]} 6. Nf3 {[%clk 0:03:03.3]} 6... g6 {[%clk 0:02:59.9]}
7. Be2 {[%clk 0:03:03.8]} 7... Bg7 {[%clk 0:02:59.8]} 8. O-O {[%clk 0:03:04.4]}
8... O-O {[%clk 0:03:00.1]} 9. Nd5 {[%clk 0:03:04.9]} 9... Nd7 {[%clk
0:02:59.9]} 10. c3 {[%clk 0:03:05]} 10... a6 {[%clk 0:02:59.7]} 11. Bg5 {[%clk
0:03:03.2]} 11... Re8 {[%clk 0:02:59.3]} 12. Rad1 {[%clk 0:03:02]} 12... b5
{[%clk 0:02:59.5]} 13. Qe3 {[%clk 0:03:01.8]} 13... Bb7 {[%clk 0:03:00.1]} 14.
h4 {[%clk 0:03:00.7]} 14... Rc8 {[%clk 0:02:58.3]} 15. h5 {[%clk 0:03:00.6]}
15... Qa5 {[%clk 0:02:59.1]} 16. h6 {[%clk 0:02:56.3]} 16... Bh8 {[%clk
0:02:58.6]} 17. a3 {[%clk 0:02:56.8]} 17... Nf8 {[%clk 0:02:48.3]} 18. Bh4
{[%clk 0:02:32.9]} 18... Nd7 {[%clk 0:02:42.4]} 19. Ng5 {[%clk 0:02:21.6]} 19...
e6 {[%clk 0:02:24.7]} 20. Nb4 {[%clk 0:02:09.9]} 20... Qc7 {[%clk 0:02:17.1]}
21. Bg3 {[%clk 0:01:59.6]} 21... Nce5 {[%clk 0:02:17.3]} 22. f4 {[%clk
0:01:50.7]} 22... Nc4 {[%clk 0:02:17.6]} 23. Bxc4 {[%clk 0:01:48.5]} 23... bxc4
{[%clk 0:02:17]} 24. Kh1 {[%clk 0:01:40]} 24... Nf6 {[%clk 0:02:10.1]} 25. Qe2
{[%clk 0:01:27.5]} 25... Nh5 {[%clk 0:01:59.4]} 26. Bh2 {[%clk 0:01:26.8]} 26...
Qe7 {[%clk 0:02:00.1]} 27. Rde1 {[%clk 0:01:13.3]} 27... Qf8 {[%clk 0:01:54.1]}
28. Qg4 {[%clk 0:01:07]} 28... Qxh6 {[%clk 0:01:52.4]} 29. f5 {[%clk 0:01:01]}
29... exf5 {[%clk 0:01:19]} 30. exf5 {[%clk 0:01:01.2]} 30... Rxe1 {[%clk
0:01:19.9]} 31. Rxe1 {[%clk 0:01:01.4]} 31... gxf5 {[%clk 0:01:20.5]} 32. Nxf7+
{[%clk 0:00:38.4]} 32... Kxf7 {[%clk 0:01:20.4]} 33. Qxf5+ {[%clk 0:00:37.9]}
33... Kg8 {[%clk 0:00:50.3]} 34. Kg1 {[%clk 0:00:38.3]} 34... Rf8 {[%clk
0:00:41.9]} 35. Qd7 {[%clk 0:00:29.8]} 35... Qf6 {[%clk 0:00:32.1]} 36. Qg4+
{[%clk 0:00:29.9]} 36... Bg7 {[%clk 0:00:24.1]} 37. Qxc4+ {[%clk 0:00:21.9]}
37... Kh8 {[%clk 0:00:24.2]} 38. Rf1 {[%clk 0:00:14.6]} 38... Qxf1+ {[%clk
0:00:17.8]} 39. Qxf1 {[%clk 0:00:15.5]} 39... Rxf1+ {[%clk 0:00:18]} 40. Kxf1
{[%clk 0:00:16.4]} 40... d5 {[%clk 0:00:15.1]} 41. Nd3 {[%clk 0:00:15.2]} 41...
Nf6 {[%clk 0:00:13.1]} 42. Nc5 {[%clk 0:00:14.8]} 42... Bc8 {[%clk 0:00:13.6]}
43. Be5 {[%clk 0:00:06.2]} 43... Kg8 {[%clk 0:00:12.2]} 44. a4 {[%clk
0:00:06.1]} 44... Kf7 {[%clk 0:00:12.4]} 45. b4 {[%clk 0:00:05.1]} 45... Bf8
{[%clk 0:00:12.3]} 46. Nd3 {[%clk 0:00:02.7]} 46... Ne4 {[%clk 0:00:11.7]} 47.
Bd4 {[%clk 0:00:02.9]} 47... Bd6 {[%clk 0:00:11.2]} 48. Ke2 {[%clk 0:00:02.5]}
48... Ke6 {[%clk 0:00:11.2]} 49. Ke3 {[%clk 0:00:03]} 49... Bd7 {[%clk
0:00:11.2]} 50. c4 {[%clk 0:00:02.7]} 50... Bxa4 {[%clk 0:00:10.3]} 51. cxd5+
{[%clk 0:00:02.4]} 51... Kxd5 {[%clk 0:00:10.8]} 52. Bc5 {[%clk 0:00:02.1]}
52... Nxc5 {[%clk 0:00:10.1]} 0-1

[Event "Late-Titled-Tuesday-Blitz-October-10-2023"]
[Site "Chess.com"]
[Date "2023.10.10"]
[Round "4"]
[White "venturov"]
[Black "Dannyyi"]
[Result "0-1"]
[WhiteElo "2438"]
[BlackElo "2262"]
[TimeControl "180+1"]
[EndTime "14:37:31 PDT"]
[Termination "Dannyyi won by resignation"]

1. e4 {[%clk 0:03:00.9]} 1... c5 {[%clk 0:02:59.7]} 2. Nf3 {[%clk 0:03:00.9]}
2... Nc6 {[%clk 0:02:59.1]} 3. d4 {[%clk 0:02:59.7]} 3... cxd4 {[%clk 0:02:59]}
4. Nxd4 {[%clk 0:03:00.6]} 4... Nf6 {[%clk 0:02:58.6]} 5. Nc3 {[%clk 0:03:00.6]}
5... e5 {[%clk 0:02:58.6]} 6. Ndb5 {[%clk 0:03:00.7]} 6... d6 {[%clk 0:02:58]}
7. Nd5 {[%clk 0:03:01.4]} 7... Nxd5 {[%clk 0:02:56.3]} 8. exd5 {[%clk
0:03:02.3]} 8... Nb8 {[%clk 0:02:56.3]} 9. a4 {[%clk 0:03:01.2]} 9... Be7 {[%clk
0:02:55.1]} 10. Be2 {[%clk 0:03:00.7]} 10... O-O {[%clk 0:02:53.6]} 11. O-O
{[%clk 0:03:00.8]} 11... Nd7 {[%clk 0:02:50.6]} 12. Be3 {[%clk 0:02:57.4]} 12...
a6 {[%clk 0:02:48.3]} 13. Na3 {[%clk 0:02:57.4]} 13... Bg5 {[%clk 0:02:48.5]}
14. Qd2 {[%clk 0:02:43.6]} 14... Bxe3 {[%clk 0:02:45.5]} 15. Qxe3 {[%clk
0:02:44.5]} 15... Qh4 {[%clk 0:02:27.1]} 16. Nc4 {[%clk 0:02:38.8]} 16... Qe7
{[%clk 0:02:25]} 17. Qa3 {[%clk 0:02:12.2]} 17... Nc5 {[%clk 0:02:23.2]} 18. b4
{[%clk 0:02:11.7]} 18... Ne4 {[%clk 0:02:20.6]} 19. f3 {[%clk 0:01:47.6]} 19...
Nf6 {[%clk 0:02:17.9]} 20. Nb6 {[%clk 0:01:21.6]} 20... Rb8 {[%clk 0:02:15.1]}
21. c4 {[%clk 0:01:21.9]} 21... Bf5 {[%clk 0:02:11.1]} 22. a5 {[%clk 0:01:11.5]}
22... Rfe8 {[%clk 0:02:02.9]} 23. Rae1 {[%clk 0:01:04.4]} 23... Nd7 {[%clk
0:02:01]} 24. Bd3 {[%clk 0:00:56.2]} 24... Bxd3 {[%clk 0:01:59.5]} 25. Qxd3
{[%clk 0:00:57.1]} 25... Qd8 {[%clk 0:01:53.4]} 26. c5 {[%clk 0:00:54.5]} 26...
Nxb6 {[%clk 0:01:51.3]} 27. axb6 {[%clk 0:00:53.3]} 27... Qd7 {[%clk 0:01:42.4]}
28. Rc1 {[%clk 0:00:48.3]} 28... Rec8 {[%clk 0:01:41.3]} 29. Rfd1 {[%clk
0:00:39]} 29... g6 {[%clk 0:01:34.9]} 30. Rc2 {[%clk 0:00:34.2]} 30... Qa4
{[%clk 0:01:28.4]} 31. Rdc1 {[%clk 0:00:34.5]} 31... Qxb4 {[%clk 0:01:26.1]} 32.
Rc4 {[%clk 0:00:22.5]} 32... Qb5 {[%clk 0:01:23.5]} 33. cxd6 {[%clk 0:00:21]}
33... Qxb6+ {[%clk 0:01:17.9]} 34. Kh1 {[%clk 0:00:17.5]} 34... Rxc4 {[%clk
0:01:15.7]} 35. Qxc4 {[%clk 0:00:13.2]} 35... Qxd6 {[%clk 0:01:15.2]} 36. h4
{[%clk 0:00:13.8]} 36... h5 {[%clk 0:01:12.4]} 37. g4 {[%clk 0:00:13]} 37...
hxg4 {[%clk 0:01:10.8]} 38. Qxg4 {[%clk 0:00:13.9]} 38... Qxd5 {[%clk
0:01:00.6]} 39. h5 {[%clk 0:00:13.8]} 39... Qd2 {[%clk 0:00:55.6]} 40. Rg1
{[%clk 0:00:10.1]} 40... Qh6 {[%clk 0:00:55.4]} 41. Qh4 {[%clk 0:00:03.6]} 41...
Re8 {[%clk 0:00:51.4]} 42. Rg4 {[%clk 0:00:01.9]} 42... Re6 {[%clk 0:00:48.3]}
43. Kg2 {[%clk 0:00:01.7]} 43... e4 {[%clk 0:00:37.3]} 44. Qd8+ {[%clk
0:00:02.4]} 44... Kg7 {[%clk 0:00:35.2]} 45. Qd4+ {[%clk 0:00:02.6]} 45... Kg8
{[%clk 0:00:31.9]} 46. Qd8+ {[%clk 0:00:02.2]} 46... Qf8 {[%clk 0:00:30.9]} 47.
Qd4 {[%clk 0:00:02.3]} 47... exf3+ {[%clk 0:00:30.7]} 48. Kxf3 {[%clk
0:00:02.7]} 48... Qa3+ {[%clk 0:00:29.5]} 49. Kg2 {[%clk 0:00:01.8]} 49... Qa2+
{[%clk 0:00:25.5]} 50. Kg3 {[%clk 0:00:01.5]} 50... Qb3+ {[%clk 0:00:25.3]} 51.
Kh4 {[%clk 0:00:02]} 51... Qc2 {[%clk 0:00:20]} 52. hxg6 {[%clk 0:00:02.1]}
52... Qh2+ {[%clk 0:00:19.1]} 53. Kg5 {[%clk 0:00:01.9]} 53... Rxg6+ {[%clk
0:00:19.5]} 54. Kf5 {[%clk 0:00:02.3]} 54... Qh5+ {[%clk 0:00:16.9]} 55. Rg5
{[%clk 0:00:01.4]} 55... Qxg5+ {[%clk 0:00:17.1]} 56. Ke4 {[%clk 0:00:02.3]}
56... Qg4+ {[%clk 0:00:17.4]} 57. Kd5 {[%clk 0:00:03]} 57... Rd6+ {[%clk
0:00:16.5]} 0-1

[Event "Late-Titled-Tuesday-Blitz-October-10-2023"]
[Site "Chess.com"]
[Date "2023.10.10"]
[Round "4"]
[White "micke12a"]
[Black "jaskol95"]
[Result "1/2-1/2"]
[WhiteElo "2355"]
[BlackElo "2569"]
[TimeControl "180+1"]
[EndTime "14:37:33 PDT"]
[Termination "Game drawn by stalemate"]

1. d4 {[%clk 0:02:49.5]} 1... d5 {[%clk 0:03:00.2]} 2. Nc3 {[%clk 0:02:48.7]}
2... c6 {[%clk 0:02:54.9]} 3. Bf4 {[%clk 0:02:48.1]} 3... Bf5 {[%clk 0:02:47]}
4. e3 {[%clk 0:02:47]} 4... e6 {[%clk 0:02:46.6]} 5. f3 {[%clk 0:02:46.6]} 5...
Bd6 {[%clk 0:02:39.5]} 6. Nge2 {[%clk 0:02:46]} 6... h5 {[%clk 0:02:38.3]} 7. h4
{[%clk 0:02:42.3]} 7... Nf6 {[%clk 0:02:35.7]} 8. Bg5 {[%clk 0:02:33]} 8... Nbd7
{[%clk 0:02:32.3]} 9. e4 {[%clk 0:02:31.4]} 9... dxe4 {[%clk 0:02:10]} 10. fxe4
{[%clk 0:02:25.8]} 10... Bg4 {[%clk 0:01:59.1]} 11. e5 {[%clk 0:02:25.3]} 11...
Nxe5 {[%clk 0:01:41.2]} 12. dxe5 {[%clk 0:02:24.2]} 12... Bxe5 {[%clk
0:01:41.6]} 13. Qxd8+ {[%clk 0:02:24.2]} 13... Rxd8 {[%clk 0:01:42.5]} 14. Rd1
{[%clk 0:02:19.4]} 14... Rxd1+ {[%clk 0:01:31]} 15. Nxd1 {[%clk 0:02:07]} 15...
Ne4 {[%clk 0:01:27.4]} 16. Be3 {[%clk 0:02:05.6]} 16... Ke7 {[%clk 0:01:18.7]}
17. c3 {[%clk 0:01:59.5]} 17... Rd8 {[%clk 0:01:09.1]} 18. Nf2 {[%clk 0:01:58]}
18... Bxe2 {[%clk 0:00:46.1]} 19. Bxe2 {[%clk 0:01:55.5]} 19... Ng3 {[%clk
0:00:46.8]} 20. Rg1 {[%clk 0:01:54]} 20... Nf5 {[%clk 0:00:45.6]} 21. Bxa7
{[%clk 0:01:48]} 21... Nxh4 {[%clk 0:00:40.9]} 22. Nd3 {[%clk 0:01:43.7]} 22...
Bg3+ {[%clk 0:00:39.4]} 23. Bf2 {[%clk 0:01:43]} 23... Bxf2+ {[%clk 0:00:39.9]}
24. Kxf2 {[%clk 0:01:42.7]} 24... g6 {[%clk 0:00:38.4]} 25. g4 {[%clk
0:01:41.4]} 25... hxg4 {[%clk 0:00:38.5]} 26. Rxg4 {[%clk 0:01:41.5]} 26... Nf5
{[%clk 0:00:38.3]} 27. a4 {[%clk 0:01:41.9]} 27... Rh8 {[%clk 0:00:37.2]} 28.
Rb4 {[%clk 0:01:41.2]} 28... Nd6 {[%clk 0:00:36.3]} 29. Nc5 {[%clk 0:01:39.8]}
29... f5 {[%clk 0:00:35.3]} 30. Nxb7 {[%clk 0:01:38.2]} 30... Ne4+ {[%clk
0:00:35.1]} 31. Ke3 {[%clk 0:01:37.7]} 31... Rh3+ {[%clk 0:00:34.3]} 32. Kd4
{[%clk 0:01:32.7]} 32... Rh2 {[%clk 0:00:33.2]} 33. Bd3 {[%clk 0:01:31.2]} 33...
Nd6 {[%clk 0:00:30.8]} 34. Nxd6 {[%clk 0:01:23.7]} 34... Kxd6 {[%clk 0:00:31.1]}
35. Rb8 {[%clk 0:01:24.1]} 35... e5+ {[%clk 0:00:29.6]} 36. Kc4 {[%clk
0:01:23.4]} 36... e4 {[%clk 0:00:29.6]} 37. Bb1 {[%clk 0:01:09.4]} 37... Kc7
{[%clk 0:00:29.1]} 38. Rg8 {[%clk 0:01:08.6]} 38... Rxb2 {[%clk 0:00:28.8]} 39.
Bxe4 {[%clk 0:00:58.9]} 39... fxe4 {[%clk 0:00:28.4]} 40. Rxg6 {[%clk
0:00:58.3]} 40... Ra2 {[%clk 0:00:27.8]} 41. Kd4 {[%clk 0:00:54.4]} 41... Rxa4+
{[%clk 0:00:27.6]} 42. c4 {[%clk 0:00:55.2]} 42... e3 {[%clk 0:00:27.2]} 43. Re6
{[%clk 0:00:52.7]} 43... Ra3 {[%clk 0:00:21.5]} 44. Rxe3 {[%clk 0:00:50.7]}
44... c5+ {[%clk 0:00:21.7]} 45. Ke4 {[%clk 0:00:48.9]} 45... Rxe3+ {[%clk
0:00:15.5]} 46. Kxe3 {[%clk 0:00:48.2]} 46... Kb6 {[%clk 0:00:16.3]} 47. Ke4
{[%clk 0:00:30.5]} 47... Ka5 {[%clk 0:00:16.4]} 48. Ke5 {[%clk 0:00:26]} 48...
Kb6 {[%clk 0:00:03.4]} 49. Kd5 {[%clk 0:00:20.8]} 49... Kb7 {[%clk 0:00:03.5]}
50. Kxc5 {[%clk 0:00:19.7]} 50... Kc7 {[%clk 0:00:04.1]} 51. Kb5 {[%clk
0:00:20.4]} 51... Kb7 {[%clk 0:00:04.6]} 52. c5 {[%clk 0:00:21]} 52... Kc7
{[%clk 0:00:04.9]} 53. Kc4 {[%clk 0:00:20.4]} 53... Kc6 {[%clk 0:00:05.1]} 54.
Kd4 {[%clk 0:00:20.6]} 54... Kc7 {[%clk 0:00:04.6]} 55. Kd5 {[%clk 0:00:21.5]}
55... Kd7 {[%clk 0:00:04.9]} 56. c6+ {[%clk 0:00:22.1]} 56... Kc7 {[%clk
0:00:05.1]} 57. Kc5 {[%clk 0:00:22.8]} 57... Kc8 {[%clk 0:00:05.5]} 58. Kb6
{[%clk 0:00:23.3]} 58... Kb8 {[%clk 0:00:06]} 59. Kb5 {[%clk 0:00:23.9]} 59...
Kc7 {[%clk 0:00:05.1]} 60. Kc5 {[%clk 0:00:24.8]} 60... Kc8 {[%clk 0:00:04.8]}
61. Kd6 {[%clk 0:00:24.2]} 61... Kd8 {[%clk 0:00:05.3]} 62. c7+ {[%clk
0:00:23.8]} 62... Kc8 {[%clk 0:00:05.6]} 63. Kc6 {[%clk 0:00:24.7]} 1/2-1/2

[Event "Late-Titled-Tuesday-Blitz-October-10-2023"]
[Site "Chess.com"]
[Date "2023.10.10"]
[Round "4"]
[White "TheoSlade"]
[Black "GothamChess"]
[Result "0-1"]
[WhiteElo "2512"]
[BlackElo "2747"]
[TimeControl "180+1"]
[EndTime "14:37:35 PDT"]
[Termination "GothamChess won by resignation"]

1. d4 {[%clk 0:03:00.9]} 1... f5 {[%clk 0:02:59.2]} 2. e4 {[%clk 0:02:56.6]}
2... fxe4 {[%clk 0:02:58.4]} 3. Nc3 {[%clk 0:02:57.3]} 3... Nf6 {[%clk
0:02:58.4]} 4. Bg5 {[%clk 0:02:57.9]} 4... Nc6 {[%clk 0:02:55.8]} 5. d5 {[%clk
0:02:57.5]} 5... Ne5 {[%clk 0:02:55.1]} 6. Qe2 {[%clk 0:02:58.3]} 6... c6 {[%clk
0:02:52.1]} 7. f4 {[%clk 0:02:31.7]} 7... Nf7 {[%clk 0:02:48.7]} 8. Bxf6 {[%clk
0:02:30.1]} 8... gxf6 {[%clk 0:02:14.8]} 9. Nxe4 {[%clk 0:02:23.5]} 9... Qb6
{[%clk 0:01:51.3]} 10. O-O-O {[%clk 0:02:15.6]} 10... cxd5 {[%clk 0:01:41.4]}
11. Rxd5 {[%clk 0:02:12]} 11... Bg7 {[%clk 0:01:26.9]} 12. Nf3 {[%clk
0:02:04.9]} 12... e6 {[%clk 0:01:23.1]} 13. Rd1 {[%clk 0:01:57]} 13... Qc7
{[%clk 0:01:12.8]} 14. f5 {[%clk 0:01:53.4]} 14... Qf4+ {[%clk 0:01:07.5]} 15.
Kb1 {[%clk 0:01:53.2]} 15... Qxf5 {[%clk 0:01:04.7]} 16. g4 {[%clk 0:01:46.8]}
16... Qf4 {[%clk 0:01:01]} 17. Bg2 {[%clk 0:01:43.9]} 17... O-O {[%clk 0:00:56]}
18. Rdf1 {[%clk 0:01:32.7]} 18... d5 {[%clk 0:00:52.8]} 19. Nc5 {[%clk
0:01:14.3]} 19... Qd6 {[%clk 0:00:50]} 20. Nb3 {[%clk 0:01:07.1]} 20... e5
{[%clk 0:00:45.2]} 21. Nh4 {[%clk 0:01:07]} 21... Nh6 {[%clk 0:00:40.4]} 22. Qd1
{[%clk 0:00:51.1]} 22... Be6 {[%clk 0:00:39]} 23. Nf5 {[%clk 0:00:51.1]} 23...
Nxf5 {[%clk 0:00:34.1]} 24. gxf5 {[%clk 0:00:52]} 24... Bf7 {[%clk 0:00:33.8]}
25. Rhg1 {[%clk 0:00:50.2]} 25... Kh8 {[%clk 0:00:33.8]} 26. Nd2 {[%clk
0:00:41.5]} 26... Qc5 {[%clk 0:00:28.5]} 27. Bf3 {[%clk 0:00:40]} 27... Rac8
{[%clk 0:00:27.8]} 28. Nb3 {[%clk 0:00:34.9]} 28... Qc4 {[%clk 0:00:26.7]} 29.
Rf2 {[%clk 0:00:30.6]} 29... e4 {[%clk 0:00:25.1]} 30. Be2 {[%clk 0:00:30.9]}
30... Qc7 {[%clk 0:00:22.2]} 31. Bh5 {[%clk 0:00:31.2]} 31... Bh6 {[%clk
0:00:16.9]} 32. Bxf7 {[%clk 0:00:28.6]} 32... Qxf7 {[%clk 0:00:17.1]} 33. Nd4
{[%clk 0:00:28.8]} 33... Be3 {[%clk 0:00:17]} 34. Rfg2 {[%clk 0:00:24.6]} 34...
Bxg1 {[%clk 0:00:16.9]} 35. Rxg1 {[%clk 0:00:25.5]} 35... Rg8 {[%clk 0:00:17.3]}
36. Ne6 {[%clk 0:00:23.4]} 36... Rxg1 {[%clk 0:00:16]} 37. Qxg1 {[%clk
0:00:24.3]} 37... Rg8 {[%clk 0:00:15.7]} 38. Qxa7 {[%clk 0:00:24.2]} 38... h5
{[%clk 0:00:10.8]} 39. a4 {[%clk 0:00:24.4]} 39... Qe7 {[%clk 0:00:06.1]} 40.
Qe3 {[%clk 0:00:24.7]} 40... Kh7 {[%clk 0:00:05.8]} 41. Qh3 {[%clk 0:00:22.3]}
41... Kh6 {[%clk 0:00:05.3]} 42. Nf4 {[%clk 0:00:22.2]} 42... Rg5 {[%clk
0:00:05.3]} 43. Nxd5 {[%clk 0:00:21.8]} 43... Qe5 {[%clk 0:00:05.6]} 44. Qb3
{[%clk 0:00:18.2]} 44... Rxf5 {[%clk 0:00:04.2]} 45. Ne3 {[%clk 0:00:14.4]}
45... Rf3 {[%clk 0:00:04.3]} 46. Qb6 {[%clk 0:00:12.9]} 46... Qf4 {[%clk
0:00:01.7]} 47. Nd5 {[%clk 0:00:12.5]} 47... Qe5 {[%clk 0:00:01.7]} 48. Qxb7
{[%clk 0:00:11]} 48... e3 {[%clk 0:00:01.7]} 49. Ka2 {[%clk 0:00:11.6]} 49... e2
{[%clk 0:00:02]} 50. Qc8 {[%clk 0:00:09.4]} 50... Qxd5+ {[%clk 0:00:02.1]} 51.
b3 {[%clk 0:00:09.7]} 51... e1=Q {[%clk 0:00:02.4]} 52. Qh8+ {[%clk 0:00:10.4]}
52... Kg5 {[%clk 0:00:02.9]} 53. Qg7+ {[%clk 0:00:10.8]} 53... Kf5 {[%clk
0:00:03.4]} 54. Qh7+ {[%clk 0:00:10.9]} 54... Kf4 {[%clk 0:00:03.7]} 55. Qh6+
{[%clk 0:00:11]} 55... Qg5 {[%clk 0:00:03.9]} 56. Qf8 {[%clk 0:00:11]} 56... Ke3
{[%clk 0:00:03.8]} 57. Qe7+ {[%clk 0:00:10.6]} 57... Qe5 {[%clk 0:00:03.7]} 58.
Qa7+ {[%clk 0:00:10.5]} 58... Qd4 {[%clk 0:00:03.8]} 59. Qe7+ {[%clk 0:00:10.7]}
59... Kd2 {[%clk 0:00:04.4]} 60. Qb4+ {[%clk 0:00:10]} 60... Qxb4 {[%clk
0:00:04.4]} 0-1

[Event "Late-Titled-Tuesday-Blitz-October-10-2023"]
[Site "Chess.com"]
[Date "2023.10.10"]
[Round "4"]
[White "GoltsevDmitry2000"]
[Black "Zeck_CH"]
[Result "1-0"]
[WhiteElo "2703"]
[BlackElo "2460"]
[TimeControl "180+1"]
[EndTime "14:37:36 PDT"]
[Termination "GoltsevDmitry2000 won by resignation"]

1. e4 {[%clk 0:02:59.7]} 1... e5 {[%clk 0:03:00.1]} 2. Nf3 {[%clk 0:02:59.1]}
2... Nc6 {[%clk 0:03:00.8]} 3. Bb5 {[%clk 0:02:58.9]} 3... a6 {[%clk 0:03:00.7]}
4. Ba4 {[%clk 0:02:59.2]} 4... Nf6 {[%clk 0:03:01.4]} 5. O-O {[%clk 0:02:59.4]}
5... b5 {[%clk 0:03:01.9]} 6. Bb3 {[%clk 0:02:59.2]} 6... Be7 {[%clk 0:03:02.7]}
7. Re1 {[%clk 0:02:59.3]} 7... O-O {[%clk 0:03:02.7]} 8. c3 {[%clk 0:03:00]}
8... d6 {[%clk 0:03:03.2]} 9. d4 {[%clk 0:03:00.4]} 9... Bg4 {[%clk 0:03:02.2]}
10. d5 {[%clk 0:02:46.8]} 10... Nb8 {[%clk 0:02:59.9]} 11. h3 {[%clk 0:02:46.7]}
11... Bxf3 {[%clk 0:02:58.6]} 12. Qxf3 {[%clk 0:02:46.1]} 12... Nbd7 {[%clk
0:02:57.2]} 13. Nd2 {[%clk 0:02:45.2]} 13... Nc5 {[%clk 0:02:56.2]} 14. Bc2
{[%clk 0:02:44.2]} 14... a5 {[%clk 0:02:55.2]} 15. Nf1 {[%clk 0:02:43.4]} 15...
Nfd7 {[%clk 0:02:53.6]} 16. Ng3 {[%clk 0:02:40.2]} 16... g6 {[%clk 0:02:53.9]}
17. Bh6 {[%clk 0:02:39.6]} 17... Re8 {[%clk 0:02:54.3]} 18. Nf5 {[%clk
0:02:35.8]} 18... Bf6 {[%clk 0:02:46.8]} 19. Ne3 {[%clk 0:02:06.5]} 19... Bg7
{[%clk 0:02:39.5]} 20. Ng4 {[%clk 0:01:59.8]} 20... Qe7 {[%clk 0:02:36.2]} 21.
Bd2 {[%clk 0:01:35.3]} 21... h5 {[%clk 0:02:33]} 22. Nh6+ {[%clk 0:01:35]} 22...
Kh7 {[%clk 0:02:00.3]} 23. Qxf7 {[%clk 0:01:09.5]} 23... Qxf7 {[%clk 0:01:50]}
24. Nxf7 {[%clk 0:01:10.4]} 24... Re7 {[%clk 0:01:44.9]} 25. Ng5+ {[%clk
0:01:08.8]} 25... Kg8 {[%clk 0:01:45.8]} 26. b4 {[%clk 0:00:42.3]} 26... Na6
{[%clk 0:01:41.7]} 27. Bd3 {[%clk 0:00:22.4]} 27... Rb8 {[%clk 0:01:37.5]} 28.
a4 {[%clk 0:00:21.8]} 28... axb4 {[%clk 0:01:29.2]} 29. cxb4 {[%clk 0:00:19.6]}
29... Rb7 {[%clk 0:01:20]} 30. axb5 {[%clk 0:00:19.6]} 30... Nab8 {[%clk
0:01:20.7]} 31. Rec1 {[%clk 0:00:18.8]} 31... Bf6 {[%clk 0:01:19.1]} 32. Ne6
{[%clk 0:00:18.7]} 32... Nf8 {[%clk 0:01:16.7]} 33. Nd8 {[%clk 0:00:18.4]} 33...
Rb6 {[%clk 0:01:13.9]} 34. Be3 {[%clk 0:00:18.5]} 34... Rd7 {[%clk 0:01:09.9]}
35. Bxb6 {[%clk 0:00:17.6]} 35... Bxd8 {[%clk 0:01:08.9]} 36. Ra8 {[%clk
0:00:15.4]} 36... cxb6 {[%clk 0:01:07.8]} 37. Rxb8 {[%clk 0:00:15.5]} 37... Kf7
{[%clk 0:01:06.4]} 38. Rcc8 {[%clk 0:00:11]} 38... Ke7 {[%clk 0:01:05.3]} 39. g3
{[%clk 0:00:07.9]} 39... Nh7 {[%clk 0:01:03.8]} 40. f4 {[%clk 0:00:07.8]} 40...
Nf6 {[%clk 0:01:00.3]} 41. Kg2 {[%clk 0:00:07.6]} 41... h4 {[%clk 0:00:57.4]}
42. fxe5 {[%clk 0:00:06.5]} 42... dxe5 {[%clk 0:00:57.2]} 43. gxh4 {[%clk
0:00:06.9]} 43... Nh5 {[%clk 0:00:57.3]} 44. Kf3 {[%clk 0:00:05.3]} 44... Nf4
{[%clk 0:00:52.3]} 45. Bc4 {[%clk 0:00:05.9]} 45... Rd6 {[%clk 0:00:49.3]} 46.
Rc6 {[%clk 0:00:05.8]} 46... Rd7 {[%clk 0:00:47.9]} 47. d6+ {[%clk 0:00:06.2]}
47... Kf6 {[%clk 0:00:44.3]} 48. Rcc8 {[%clk 0:00:05.4]} 48... Be7 {[%clk
0:00:28.9]} 49. dxe7 {[%clk 0:00:05.2]} 49... Kxe7 {[%clk 0:00:29.8]} 50. Re8+
{[%clk 0:00:05.5]} 50... Kd6 {[%clk 0:00:28.9]} 51. Rbd8 {[%clk 0:00:05]} 51...
Kc7 {[%clk 0:00:26.8]} 52. Rxd7+ {[%clk 0:00:05.2]} 52... Kxd7 {[%clk
0:00:27.7]} 53. Rf8 {[%clk 0:00:05]} 53... Nh5 {[%clk 0:00:28.6]} 54. Rf7+
{[%clk 0:00:04.9]} 54... Kd6 {[%clk 0:00:28.7]} 55. Rb7 {[%clk 0:00:05.2]} 55...
Nf4 {[%clk 0:00:27.8]} 56. Rxb6+ {[%clk 0:00:05.6]} 56... Ke7 {[%clk 0:00:28.6]}
57. Re6+ {[%clk 0:00:05.6]} 57... Nxe6 {[%clk 0:00:26]} 58. Bxe6 {[%clk
0:00:06.5]} 58... Kxe6 {[%clk 0:00:26.8]} 59. b6 {[%clk 0:00:07]} 59... Kd6
{[%clk 0:00:27]} 60. b5 {[%clk 0:00:07]} 60... Kd7 {[%clk 0:00:26.6]} 61. Kg4
{[%clk 0:00:07.7]} 61... Kc8 {[%clk 0:00:25.7]} 62. Kg5 {[%clk 0:00:08.4]} 62...
Kb7 {[%clk 0:00:26.6]} 63. Kxg6 {[%clk 0:00:09.3]} 63... Kxb6 {[%clk 0:00:27.5]}
64. h5 {[%clk 0:00:10]} 64... Kxb5 {[%clk 0:00:28.4]} 65. Kf5 {[%clk 0:00:10.6]}
65... Kc4 {[%clk 0:00:29.2]} 66. h6 {[%clk 0:00:11.5]} 66... Kd4 {[%clk
0:00:29.6]} 67. h7 {[%clk 0:00:12.4]} 67... Ke3 {[%clk 0:00:30.3]} 68. h8=Q
{[%clk 0:00:13.3]} 1-0